fUST/lending_fUST_20260118
["ID","MTS","AMOUNT","RATE_DAILY","PERIOD"]
[402436233,1768677071569,-500.0,0.0001726,3]
[402436234,1768677071579,-154.03719813,0.0001726,3]
[402436235,1768677071588,-536.25086162,0.0001726,3]
[402436236,1768677071598,-500.0,0.0001726,3]
[402436237,1768677071608,-500.0,0.0001726,3]
[402436238,1768677071627,-547.09236024,0.0001726,3]
[402436239,1768677071639,-500.0,0.0001726,3]
[402436240,1768677071648,-500.0,0.0001726,3]
[402436241,1768677071658,-862.94,0.0001726,3]
[402436242,1768677071667,-500.0,0.0001726,3]
[402436243,1768677071677,-500.0,0.0001726,3]
[402436244,1768677071687,-500.0,0.0001726,3]
[402436245,1768677071696,-824.42,0.0001726,3]
[402436246,1768677071706,-500.0,0.0001726,3]
[402436247,1768677071715,-972.71,0.0001726,3]
[402436248,1768677071724,-505.28,0.0001726,3]
[402436249,1768677071733,-500.0,0.0001726,3]
[402436250,1768677071743,-560.2982487,0.0001726,3]
[402436251,1768677071753,-500.0,0.0001726,3]
[402436252,1768677071763,-676.38,0.0001726,3]
[402436253,1768677071773,-500.0,0.0001726,3]
[402436254,1768677071783,-500.0,0.0001726,3]
[402436255,1768677071793,-500.0,0.0001726,3]
[402436256,1768677071803,-500.0,0.0001726,3]
[402436257,1768677071815,-500.0,0.0001726,3]
[402436258,1768677071826,-718.46,0.0001726,3]
[402436259,1768677071837,-500.0,0.0001726,3]
[402436260,1768677071847,-500.0,0.0001726,3]
[402436261,1768677071857,-795.48,0.0001726,3]
[402436262,1768677071868,-500.0,0.0001726,3]
[402436263,1768677071878,-500.0,0.0001726,3]
[402436264,1768677071889,-1494.36,0.0001726,3]
[402436265,1768677071900,-500.0,0.0001726,3]
[402436266,1768677071910,-527.51,0.0001726,3]
[402436267,1768677071920,-1636.62,0.0001726,3]
[402436268,1768677071930,-500.0,0.0001726,3]
[402436269,1768677071939,-500.0,0.0001726,3]
[402436270,1768677071949,-500.0,0.0001726,3]
[402436271,1768677071959,-955.79,0.0001726,3]
[402436272,1768677071969,-580.87,0.0001726,3]
[402436273,1768677071980,-752.06,0.0001726,3]
[402436274,1768677071990,-500.0,0.0001726,3]
[402436275,1768677072000,-500.0,0.0001726,3]
[402436276,1768677072010,-905.51,0.0001726,3]
[402436277,1768677072021,-500.0,0.0001726,3]
[402436278,1768677072033,-1208.54,0.0001726,3]
[402436279,1768677072044,-183.181997,0.0001726,2]
[402436280,1768677072054,-1438.2,0.0001726,3]
[402436281,1768677072064,-1688.51,0.0001726,3]
[402436282,1768677072074,-183.181997,0.0001726,2]
[402436283,1768677072085,-183.181997,0.0001726,2]
[402436284,1768677072095,-183.181998,0.0001726,2]
[402436285,1768677072105,-500.0,0.0001726,3]
[402436286,1768677072116,-500.0,0.0001726,3]
[402436287,1768677072126,-932.73,0.0001726,3]
[402436288,1768677072136,-500.0,0.0001726,3]
[402436289,1768677072147,-706.53,0.0001726,3]
[402436290,1768677072157,-947.08,0.0001726,3]
[402436291,1768677072168,-1057.27,0.0001726,3]
[402436292,1768677072178,-358.09548366,0.0001726,3]
[402436293,1768677072188,-2004.45,0.0001726,3]
[402436294,1768677072198,-500.0,0.0001726,3]
[402436295,1768677072208,-500.0,0.0001726,3]
[402436296,1768677072218,-688.08,0.0001726,3]
[402436297,1768677072228,-500.0,0.0001726,3]
[402436298,1768677072238,-500.0,0.0001726,3]
[402436299,1768677072248,-257.29403538,0.0001726,3]
[402436300,1768677072263,-500.0,0.0001726,3]
[402436301,1768677072272,-648.33,0.0001726,3]
[402436302,1768677072282,-500.0,0.0001726,3]
[402436303,1768677072292,-1181.35,0.0001726,3]
[402436304,1768677072304,-500.0,0.0001726,3]
[402436305,1768677072315,-500.0,0.0001726,3]
[402436306,1768677072325,-500.0,0.0001726,3]
[402436307,1768677072336,-500.0,0.0001726,3]
[402436308,1768677072347,-950.08,0.0001726,3]
[402436309,1768677072357,-500.0,0.0001726,3]
[402436310,1768677072368,-500.0,0.0001726,3]
[402436311,1768677072378,-500.0,0.0001726,3]
[402436312,1768677072388,-500.0,0.0001726,3]
[402436313,1768677072398,-1477.98,0.0001726,3]
[402436314,1768677072408,-1122.16,0.0001726,3]
[402436315,1768677072418,-1022.4,0.0001726,3]
[402436316,1768677072428,-500.0,0.0001726,3]
[402436317,1768677072437,-500.0,0.0001726,3]
[402436318,1768677072447,-500.0,0.0001726,3]
[402436319,1768677072457,-500.0,0.0001726,3]
[402436320,1768677072466,-500.0,0.0001726,3]
[402436321,1768677072476,-500.0,0.0001726,3]
[402436322,1768677072486,-1748.87,0.0001726,3]
[402436323,1768677072496,-506.9,0.0001726,3]
[402436324,1768677072505,-500.0,0.0001726,3]
[402436325,1768677072515,-634.5,0.0001726,3]
[402436326,1768677072526,-966.6,0.0001726,3]
[402436327,1768677072536,-1501.65,0.0001726,3]
[402436328,1768677072546,-1015.88,0.0001726,3]
[402436329,1768677072556,-500.0,0.0001726,3]
[402436330,1768677072567,-500.0,0.0001726,3]
[402436331,1768677072577,-531.86,0.0001726,3]
[402436332,1768677072587,-500.0,0.0001726,3]
[402436333,1768677072597,-500.0,0.0001726,3]
[402436334,1768677072607,-770.84,0.0001726,3]
[402436335,1768677072617,-1392.58,0.0001726,3]
[402436336,1768677072627,-500.0,0.0001726,3]
[402436337,1768677072638,-500.0,0.0001726,3]
[402436338,1768677072648,-500.0,0.0001726,3]
[402436339,1768677072658,-500.0,0.0001726,3]
[402436340,1768677072669,-500.0,0.0001726,3]
[402436341,1768677072679,-1290.77,0.0001726,3]
[402436342,1768677072690,-500.0,0.0001726,3]
[402436343,1768677072700,-500.0,0.0001726,3]
[402436344,1768677072710,-500.0,0.0001726,3]
[402436345,1768677072720,-540.45385614,0.0001726,3]
[402436346,1768677072730,-1293.8,0.0001726,3]
[402436347,1768677072740,-500.0,0.0001726,3]
[402436348,1768677072749,-1240.0,0.0001726,3]
[402436349,1768677072760,-500.0,0.0001726,3]
[402436350,1768677072770,-942.26,0.0001726,3]
[402436351,1768677072780,-500.0,0.0001726,3]
[402436352,1768677072790,-680.81,0.0001726,3]
[402436353,1768677072802,-863.4,0.0001726,3]
[402436354,1768677072813,-500.0,0.0001726,3]
[402436355,1768677072824,-500.0,0.0001726,3]
[402436356,1768677072834,-500.0,0.0001726,3]
[402436357,1768677072844,-500.0,0.0001726,3]
[402436358,1768677072855,-860.12,0.0001726,3]
[402436359,1768677072865,-500.0,0.0001726,3]
[402436360,1768677072875,-1611.57,0.0001726,3]
[402436361,1768677072886,-500.0,0.0001726,3]
[402436362,1768677072896,-882.95,0.0001726,3]
[402436363,1768677072905,-729.29,0.0001726,3]
[402436364,1768677072916,-500.0,0.0001726,3]
[402436365,1768677072927,-500.0,0.0001726,3]
[402436366,1768677072937,-500.0,0.0001726,3]
[402436367,1768677072947,-1300.92,0.0001726,3]
[402436368,1768677072958,-500.0,0.0001726,3]
[402436369,1768677072968,-500.0,0.0001726,3]
[402436370,1768677072978,-500.0,0.0001726,3]
[402436371,1768677072988,-500.0,0.0001726,3]
[402436372,1768677072998,-500.0,0.0001726,3]
[402436373,1768677073009,-917.63,0.0001726,3]
[402436374,1768677073019,-267.46419582,0.0001726,3]
[402436375,1768677073029,-500.0,0.0001726,3]
[402436376,1768677073038,-1000.0,0.0001726,2]
[402436377,1768677073048,-500.0,0.0001726,3]
[402436378,1768677073058,-1231.73,0.0001726,3]
[402436379,1768677073068,-500.0,0.0001726,3]
[402436380,1768677073077,-547.52,0.0001726,3]
[402436381,1768677073087,-500.0,0.0001726,3]
[402436382,1768677073097,-500.0,0.0001726,3]
[402436383,1768677073106,-821.19,0.0001726,3]
[402436384,1768677073116,-500.0,0.0001726,3]
[402436385,1768677073126,-500.0,0.0001726,3]
[402436386,1768677073136,-500.0,0.0001726,3]
[402436387,1768677073146,-1266.79,0.0001726,3]
[402436388,1768677073156,-520.45,0.0001726,3]
[402436389,1768677073167,-522.28,0.0001726,3]
[402436390,1768677073177,-654.08,0.0001726,3]
[402436391,1768677073187,-610.79,0.0001726,3]
[402436392,1768677073197,-500.0,0.0001726,3]
[402436393,1768677073207,-571.51,0.0001726,3]
[402436394,1768677073216,-500.0,0.0001726,3]
[402436395,1768677073226,-500.0,0.0001726,3]
[402436396,1768677073236,-500.0,0.0001726,3]
[402436397,1768677073245,-500.0,0.0001726,3]
[402436398,1768677073260,-768.76,0.0001726,3]
[402436399,1768677073270,-500.0,0.0001726,3]
[402436400,1768677073280,-788.51,0.0001726,3]
[402436401,1768677073289,-500.0,0.0001726,3]
[402436402,1768677073302,-500.0,0.0001726,3]
[402436403,1768677073312,-500.0,0.0001726,3]
[402436404,1768677073322,-500.0,0.0001726,3]
[402436405,1768677073334,-500.0,0.0001726,3]
[402436406,1768677073344,-532.99,0.0001726,3]
[402436407,1768677073353,-500.0,0.0001726,3]
[402436408,1768677073363,-500.0,0.0001726,2]
[402436409,1768677073373,-500.0,0.0001726,3]
[402436410,1768677073383,-500.0,0.0001726,3]
[402436411,1768677073393,-500.0,0.0001726,3]
[402436412,1768677073403,-500.0,0.0001726,3]
[402436413,1768677073413,-609.57,0.0001726,3]
[402436414,1768677073423,-500.0,0.0001726,3]
[402436415,1768677073433,-982.5,0.0001726,3]
[402436416,1768677073443,-500.0,0.0001726,3]
[402436417,1768677073453,-711.95,0.0001726,3]
[402436418,1768677073463,-500.0,0.0001726,3]
[402436419,1768677073473,-500.0,0.0001726,3]
[402436420,1768677073483,-1220.69,0.0001726,3]
[402436421,1768677073493,-524.68,0.0001726,3]
[402436422,1768677073503,-500.0,0.0001726,3]
[402436423,1768677073513,-500.0,0.0001726,3]
[402436424,1768677073523,-1421.24,0.0001726,3]
[402436425,1768677073534,-500.0,0.0001726,3]
[402436426,1768677073545,-500.0,0.0001726,3]
[402436427,1768677073555,-500.0,0.0001726,3]
[402436428,1768677073565,-698.89,0.0001726,3]
[402436429,1768677073576,-521.62,0.0001726,3]
[402436430,1768677073585,-500.0,0.0001726,3]
[402436431,1768677073596,-500.0,0.0001726,3]
[402436432,1768677073606,-500.0,0.0001726,3]
[402436433,1768677073616,-1628.67,0.0001726,3]
[402436434,1768677073627,-714.42,0.0001726,3]
[402436435,1768677073636,-500.0,0.0001726,3]
[402436436,1768677073647,-500.0,0.0001726,3]
[402436437,1768677073656,-769.6,0.0001726,3]
[402436438,1768677073666,-500.0,0.0001726,3]
[402436439,1768677073676,-882.36,0.0001726,3]
[402436440,1768677073687,-596.38925241,0.0001726,3]
[402436441,1768677073698,-937.01,0.0001726,3]
[402436442,1768677073709,-1071.96,0.0001726,3]
[402436443,1768677073721,-500.0,0.0001726,3]
[402436444,1768677073731,-2532.74,0.0001726,3]
[402436445,1768677073741,-345.54297394,0.0001726,3]
[402436446,1768677073750,-500.0,0.0001726,3]
[402436447,1768677073760,-608.0,0.0001726,3]
[402436448,1768677073771,-372.96596375,0.0001726,3]
[402436449,1768677073780,-945.0,0.0001726,3]
[402436450,1768677073790,-500.0,0.0001726,3]
[402436451,1768677073800,-500.0,0.0001726,3]
[402436452,1768677073810,-500.0,0.0001726,3]
[402436453,1768677073820,-500.0,0.0001726,3]
[402436454,1768677073830,-500.0,0.0001726,3]
[402436455,1768677073840,-724.98,0.0001726,3]
[402436456,1768677073850,-500.0,0.0001726,3]
[402436457,1768677073860,-500.0,0.0001726,3]
[402436458,1768677073870,-500.0,0.0001726,3]
[402436459,1768677073879,-1226.14,0.0001726,3]
[402436460,1768677073888,-500.0,0.0001726,3]
[402436461,1768677073898,-1192.38,0.0001726,3]
[402436462,1768677073909,-500.0,0.0001726,3]
[402436463,1768677074121,-1440.02,0.0001726,3]
[402436464,1768677074131,-500.0,0.0001726,3]
[402436465,1768677074140,-500.0,0.0001726,3]
[402436466,1768677074150,-500.0,0.0001726,3]
[402436467,1768677074160,-500.0,0.0001726,3]
[402436468,1768677074169,-563.95,0.0001726,3]
[402436469,1768677074179,-500.0,0.0001726,3]
[402436470,1768677074189,-888.73,0.0001726,3]
[402436471,1768677074198,-1322.85,0.0001726,3]
[402436472,1768677074207,-500.0,0.0001726,3]
[402436473,1768677074217,-577.24,0.0001726,3]
[402436474,1768677074227,-500.0,0.0001726,3]
[402436475,1768677074237,-500.0,0.0001726,3]
[402436476,1768677074246,-593.62,0.0001726,3]
[402436477,1768677074258,-558.99,0.0001726,3]
[402436478,1768677074267,-500.0,0.0001726,3]
[402436479,1768677074276,-500.0,0.0001726,3]
[402436480,1768677074286,-943.41,0.0001726,3]
[402436481,1768677074298,-507.13,0.0001726,3]
[402436482,1768677074307,-500.0,0.0001726,3]
[402436483,1768677074317,-878.96,0.0001726,3]
[402436484,1768677074328,-500.0,0.0001726,3]
[402436485,1768677074338,-500.0,0.0001726,3]
[402436486,1768677074353,-595.67,0.0001726,3]
[402436487,1768677074363,-500.0,0.0001726,3]
[402436488,1768677074372,-500.0,0.0001726,3]
[402436489,1768677074382,-960.34,0.0001726,3]
[402436490,1768677074393,-500.0,0.0001726,3]
[402436491,1768677074403,-764.35,0.0001726,3]
[402436492,1768677074414,-500.0,0.0001726,3]
[402436493,1768677074424,-500.0,0.0001726,3]
[402436494,1768677074434,-1333.16,0.0001726,3]
[402436495,1768677074445,-500.0,0.0001726,3]
[402436496,1768677074455,-500.0,0.0001726,3]
[402436497,1768677074466,-500.0,0.0001726,3]
[402436498,1768677074476,-1834.32,0.0001726,3]
[402436499,1768677074487,-1717.69,0.0001726,3]
[402436500,1768677074497,-500.0,0.0001726,3]
[402436501,1768677074507,-968.64,0.0001726,3]
[402436502,1768677074517,-1272.0,0.0001726,3]
[402436503,1768677074527,-500.0,0.0001726,3]
[402436504,1768677074538,-500.0,0.0001726,3]
[402436505,1768677074548,-500.0,0.0001726,3]
[402436506,1768677074558,-1630.85,0.0001726,3]
[402436507,1768677074568,-1384.14,0.0001726,3]
[402436508,1768677074577,-680.46,0.0001726,3]
[402436509,1768677074587,-500.0,0.0001726,3]
[402436510,1768677074598,-195.7,0.0001726,2]
[402436511,1768677074608,-668.86,0.0001726,3]
[402436512,1768677074618,-500.0,0.0001726,3]
[402436513,1768677074627,-500.0,0.0001726,3]
[402436514,1768677074637,-500.0,0.0001726,3]
[402436515,1768677074647,-500.0,0.0001726,3]
[402436516,1768677074657,-500.0,0.0001726,3]
[402436517,1768677074667,-1316.96,0.0001726,3]
[402436518,1768677074678,-500.0,0.0001726,3]
[402436519,1768677074688,-500.0,0.0001726,3]
[402436520,1768677074698,-500.0,0.0001726,3]
[402436521,1768677074708,-500.0,0.0001726,3]
[402436522,1768677074720,-706.96,0.0001726,3]
[402436523,1768677074730,-500.0,0.0001726,3]
[402436524,1768677074740,-500.0,0.0001726,3]
[402436525,1768677074751,-500.0,0.0001726,3]
[402436526,1768677074761,-500.0,0.0001726,3]
[402436527,1768677074771,-500.0,0.0001726,3]
[402436528,1768677074780,-1200.0,0.0001726,2]
[402436529,1768677074791,-895.54,0.0001726,3]
[402436530,1768677074800,-693.13,0.0001726,3]
[402436531,1768677074809,-1368.68,0.0001726,3]
[402436532,1768677074819,-500.0,0.0001726,3]
[402436533,1768677074829,-500.0,0.0001726,3]
[402436534,1768677074839,-500.0,0.0001726,3]
[402436535,1768677074848,-1071.26,0.0001726,3]
[402436536,1768677074858,-854.25,0.0001726,3]
[402436537,1768677074868,-822.61,0.0001726,3]
[402436538,1768677074878,-500.0,0.0001726,3]
[402436539,1768677074888,-1040.52,0.0001726,3]
[402436540,1768677074898,-500.0,0.0001726,3]
[402436541,1768677074908,-500.0,0.0001726,3]
[402436542,1768677074919,-1915.54,0.0001726,3]
[402436543,1768677074930,-591.65,0.0001726,3]
[402436544,1768677074941,-1390.83,0.0001726,3]
[402436545,1768677074951,-500.0,0.0001726,3]
[402436546,1768677074962,-205.0424937,0.0001726,3]
[402436547,1768677074973,-500.0,0.0001726,3]
[402436548,1768677074983,-500.0,0.0001726,3]
[402436549,1768677074994,-1757.22,0.0001726,3]
[402436550,1768677075004,-500.0,0.0001726,3]
[402436551,1768677075015,-500.0,0.0001726,3]
[402436552,1768677075025,-500.0,0.0001726,3]
[402436553,1768677075037,-500.0,0.0001726,3]
[402436554,1768677075046,-500.0,0.0001726,3]
[402436555,1768677075056,-838.7,0.0001726,3]
[402436556,1768677075065,-500.0,0.0001726,3]
[402436557,1768677075075,-500.0,0.0001726,3]
[402436558,1768677075084,-777.41,0.0001726,3]
[402436559,1768677075094,-1043.16,0.0001726,3]
[402436560,1768677075104,-500.0,0.0001726,3]
[402436561,1768677075113,-1407.98,0.0001726,3]
[402436562,1768677075123,-505.87,0.0001726,3]
[402436563,1768677075133,-500.0,0.0001726,3]
[402436564,1768677075142,-500.0,0.0001726,3]
[402436565,1768677075151,-500.0,0.0001726,3]
[402436566,1768677075161,-500.0,0.0001726,3]
[402436567,1768677075171,-739.58,0.0001726,3]
[402436568,1768677075181,-856.56,0.0001726,3]
[402436569,1768677075191,-500.0,0.0001726,3]
[402436570,1768677075201,-500.0,0.0001726,3]
[402436571,1768677075211,-500.0,0.0001726,3]
[402436572,1768677075226,-1416.3,0.0001726,3]
[402436573,1768677075236,-500.0,0.0001726,3]
[402436574,1768677075246,-500.0,0.0001726,3]
[402436575,1768677075262,-500.0,0.0001726,3]
[402436576,1768677075272,-500.0,0.0001726,3]
[402436577,1768677075282,-1545.1,0.0001726,3]
[402436578,1768677075291,-500.0,0.0001726,3]
[402436579,1768677075302,-513.29,0.0001726,3]
[402436580,1768677075312,-274.62103674,0.0001726,3]
[402436581,1768677075322,-500.0,0.0001726,3]
[402436582,1768677075334,-1494.01,0.0001726,3]
[402436583,1768677075343,-1051.96,0.0001726,3]
[402436584,1768677075351,-504.64,0.0001726,3]
[402436585,1768677075360,-500.0,0.0001726,3]
[402436586,1768677075370,-500.0,0.0001726,3]
[402436587,1768677075380,-500.0,0.0001726,3]
[402436588,1768677075389,-741.79,0.0001726,3]
[402436589,1768677075399,-500.0,0.0001726,3]
[402436590,1768677075409,-709.42,0.0001726,3]
[402436591,1768677075419,-500.0,0.0001726,3]
[402436592,1768677075428,-500.0,0.0001726,3]
[402436593,1768677075438,-500.0,0.0001726,3]
[402436594,1768677075448,-500.0,0.0001726,3]
[402436595,1768677075458,-1957.51,0.0001726,3]
[402436596,1768677075468,-500.0,0.0001726,3]
[402436597,1768677075477,-1860.69,0.0001726,3]
[402436598,1768677075487,-627.94,0.0001726,3]
[402436599,1768677075497,-762.35,0.0001726,3]
[402436600,1768677075507,-500.0,0.0001726,3]
[402436601,1768677075517,-500.0,0.0001726,3]
[402436602,1768677075527,-500.0,0.0001726,3]
[402436603,1768677075537,-500.0,0.0001726,3]
[402436604,1768677075546,-505.92,0.0001726,3]
[402436605,1768677075557,-898.93,0.0001726,3]
[402436606,1768677075566,-500.0,0.0001726,3]
[402436607,1768677075576,-545.77,0.0001726,3]
[402436608,1768677075586,-500.0,0.0001726,3]
[402436609,1768677075597,-1944.24,0.0001726,3]
[402436610,1768677075609,-500.0,0.0001726,3]
[402436611,1768677075619,-500.0,0.0001726,3]
[402436612,1768677075629,-344.19716838,0.0001726,3]
[402436613,1768677075638,-500.0,0.0001726,3]
[402436614,1768677075648,-1502.15,0.0001726,3]
[402436615,1768677075658,-500.0,0.0001726,3]
[402436616,1768677075668,-1665.75,0.0001726,3]
[402436617,1768677075678,-500.0,0.0001726,3]
[402436618,1768677075687,-524.56945144,0.0001726,3]
[402436619,1768677075697,-500.0,0.0001726,3]
[402436620,1768677075707,-1236.21,0.0001726,3]
[402436621,1768677075717,-624.16,0.0001726,3]
[402436622,1768677075726,-2175.59,0.0001726,3]
[402436623,1768677075736,-500.0,0.0001726,3]
[402436624,1768677075746,-500.0,0.0001726,3]
[402436625,1768677075756,-500.0,0.0001726,3]
[402436626,1768677075766,-500.0,0.0001726,3]
[402436627,1768677075776,-500.0,0.0001726,3]
[402436628,1768677075786,-700.37,0.0001726,3]
[402436629,1768677075795,-500.0,0.0001726,3]
[402436630,1768677075805,-500.0,0.0001726,3]
[402436631,1768677075814,-500.0,0.0001726,3]
[402436632,1768677075824,-500.0,0.0001726,3]
[402436633,1768677075833,-500.0,0.0001726,3]
[402436634,1768677075844,-500.0,0.0001726,3]
[402436635,1768677075853,-500.0,0.0001726,3]
[402436636,1768677075863,-2551.07,0.0001726,3]
[402436637,1768677075873,-500.0,0.0001726,3]
[402436638,1768677075884,-500.0,0.0001726,3]
[402436639,1768677075893,-500.0,0.0001726,3]
[402436640,1768677075902,-500.0,0.0001726,3]
[402436641,1768677075912,-1022.84,0.0001726,3]
[402436642,1768677075922,-500.0,0.0001726,3]
[402436643,1768677075932,-500.0,0.0001726,3]
[402436644,1768677075942,-500.0,0.0001726,3]
[402436645,1768677075952,-1319.94,0.0001726,3]
[402436646,1768677075961,-500.0,0.0001726,3]
[402436647,1768677075971,-503.64,0.0001726,3]
[402436648,1768677075981,-813.92,0.0001726,3]
[402436649,1768677075999,-861.36,0.0001726,3]
[402436650,1768677076009,-806.92,0.0001726,3]
[402436651,1768677076019,-500.0,0.0001726,3]
[402436652,1768677076028,-748.9,0.0001726,3]
[402436653,1768677076039,-2453.42,0.0001726,3]
[402436654,1768677076048,-590.49,0.0001726,3]
[402436655,1768677076058,-500.0,0.0001726,3]
[402436656,1768677076069,-500.0,0.0001726,3]
[402436657,1768677076078,-1552.9,0.0001726,3]
[402436658,1768677076088,-1695.64,0.0001726,3]
[402436659,1768677076098,-561.4,0.0001726,3]
[402436660,1768677076107,-500.0,0.0001726,3]
[402436661,1768677076118,-500.0,0.0001726,3]
[402436662,1768677076128,-1568.81,0.0001726,3]
[402436663,1768677076137,-1121.41,0.0001726,3]
[402436664,1768677076146,-1094.15,0.0001726,3]
[402436665,1768677076156,-543.12,0.0001726,3]
[402436666,1768677076166,-758.46,0.0001726,3]
[402436667,1768677076175,-500.0,0.0001726,3]
[402436668,1768677076186,-500.0,0.0001726,3]
[402436669,1768677076196,-1285.11,0.0001726,3]
[402436670,1768677076206,-917.14,0.0001726,3]
[402436671,1768677076217,-500.0,0.0001726,3]
[402436672,1768677076227,-948.88,0.0001726,3]
[402436673,1768677076237,-500.0,0.0001726,3]
[402436674,1768677076247,-500.0,0.0001726,3]
[402436675,1768677076262,-714.16,0.0001726,3]
[402436676,1768677076272,-520.72,0.0001726,3]
[402436677,1768677076282,-660.42,0.0001726,3]
[402436678,1768677076292,-1173.22,0.0001726,3]
[402436679,1768677076302,-500.0,0.0001726,3]
[402436680,1768677076312,-500.0,0.0001726,3]
[402436681,1768677076321,-500.0,0.0001726,3]
[402436682,1768677076333,-798.37,0.0001726,3]
[402436683,1768677076342,-876.59,0.0001726,3]
[402436684,1768677076351,-500.0,0.0001726,3]
[402436685,1768677076361,-500.0,0.0001726,3]
[402436686,1768677076371,-509.49,0.0001726,3]
[402436687,1768677076381,-500.0,0.0001726,3]
[402436688,1768677076390,-500.0,0.0001726,3]
[402436689,1768677076399,-500.0,0.0001726,3]
[402436690,1768677076409,-2552.27,0.0001726,3]
[402436691,1768677076419,-500.0,0.0001726,3]
[402436692,1768677076429,-500.0,0.0001726,3]
[402436693,1768677076439,-500.0,0.0001726,3]
[402436694,1768677076449,-609.02,0.0001726,3]
[402436695,1768677076458,-1639.55,0.0001726,3]
[402436696,1768677076467,-844.39,0.0001726,3]
[402436697,1768677076477,-548.99,0.0001726,3]
[402436698,1768677076486,-158.66112729,0.0001726,3]
[402436699,1768677076496,-578.12,0.0001726,3]
[402436700,1768677076588,-500.0,0.0001726,3]
[402436701,1768677076598,-500.0,0.0001726,3]
[402436702,1768677076608,-500.0,0.0001726,3]
[402436703,1768677076617,-1023.93,0.0001726,3]
[402436704,1768677076627,-500.0,0.0001726,3]
[402436705,1768677076637,-1911.06,0.0001726,3]
[402436706,1768677076647,-500.0,0.0001726,3]
[402436707,1768677076657,-500.0,0.0001726,3]
[402436708,1768677076667,-500.0,0.0001726,3]
[402436709,1768677076676,-500.0,0.0001726,3]
[402436710,1768677076685,-936.53,0.0001726,3]
[402436711,1768677076695,-1025.38,0.0001726,3]
[402436712,1768677076704,-500.0,0.0001726,3]
[402436713,1768677076714,-575.62,0.0001726,3]
[402436714,1768677076724,-1305.86,0.0001726,3]
[402436715,1768677076733,-500.0,0.0001726,3]
[402436716,1768677076743,-500.0,0.0001726,3]
[402436717,1768677076753,-1103.35,0.0001726,3]
[402436718,1768677076763,-3403.79,0.0001726,3]
[402436719,1768677076772,-500.0,0.0001726,3]
[402436720,1768677076782,-978.92,0.0001726,3]
[402436721,1768677076791,-500.0,0.0001726,3]
[402436722,1768677076800,-1480.53,0.0001726,3]
[402436723,1768677076810,-552.87,0.0001726,3]
[402436724,1768677076819,-500.0,0.0001726,3]
[402436725,1768677076828,-500.0,0.0001726,3]
[402436726,1768677076838,-500.0,0.0001726,3]
[402436727,1768677076847,-860.55,0.0001726,3]
[402436728,1768677076856,-598.38,0.0001726,3]
[402436729,1768677076865,-1148.17,0.0001726,3]
[402436730,1768677076875,-2015.39,0.0001726,3]
[402436731,1768677076883,-500.0,0.0001726,3]
[402436732,1768677076893,-674.52,0.0001726,3]